bitfinex/quotes_ETHUSD_20240710
["timestamp","ask_amount","ask_price","bid_price","bid_amount"]
[1720581654406,2.3216,3081.5,3080.4,0.972]
[1720581656071,0.972,3081.0,3080.2,7.47]
[1720581656265,0.972,3081.0,3080.1,0.972]
[1720581656479,1.324576,3081.0,3080.1,0.972]
[1720581657709,0.352576,3081.0,3080.1,0.972]
[1720581657897,2.3216,3081.1,3080.1,0.972]
[1720581658478,2.3216,3081.1,3080.3,0.972]
[1720581660693,2.3216,3081.1,3080.1,0.972]
[1720581663012,2.3216,3081.1,3080.3,0.972]
[1720581663898,2.3216,3081.1,3080.5,0.972]
[1720581665083,2.3216,3081.1,3080.4,2.4135]
[1720581665681,2.3216,3081.1,3080.5,0.972]
[1720581665885,2.3216,3081.1,3080.5,1.3046266]
[1720581667892,1.31214964,3081.4,3080.5,1.3046266]
[1720581667893,3.69284964,3081.4,3080.5,1.3046266]
[1720581670697,2.72084964,3081.4,3080.5,1.3046266]
[1720581670898,2.72084964,3081.4,3080.7,0.972]
[1720581672396,2.62084964,3081.4,3080.5,1.3046266]
[1720581672596,2.9901346,3081.4,3080.5,1.3046266]
[1720581672820,2.3807,3081.4,3080.5,1.3046266]
[1720581675322,2.3014,3081.7,3080.9,0.972]
[1720581675523,2.3014,3081.7,3081.0,0.0649065]
[1720581675829,0.34012314,3081.6,3081.4,0.972]
[1720581676078,2.327,3082.5,3081.1,5.50439288]
[1720581676212,0.75747443,3082.4,3081.6,0.972]
[1720581676522,2.327,3082.5,3081.6,0.972]
[1720581676892,0.34007137,3082.3,3081.6,0.972]
[1720581677099,1.31207137,3082.3,3081.4,0.972]
[1720581677431,1.57877851,3082.3,3081.4,0.972]
[1720581677616,1.57877851,3082.3,3081.2,1.52243929]
[1720581678017,1.57877851,3082.3,3081.4,0.972]
[1720581679704,1.31207137,3082.3,3081.4,0.972]
[1720581679905,0.34007137,3082.3,3081.4,0.972]
[1720581680934,1.31207137,3082.3,3081.4,0.972]
[1720581682036,1.31207137,3082.3,3081.2,0.55043929]
[1720581682201,1.31207137,3082.3,3081.1,5.4395]
[1720581682202,0.972,3082.1,3081.1,6.4374]
[1720581682410,2.427,3082.2,3081.1,2.4654]
[1720581682741,1.72951789,3082.1,3081.1,2.4654]
[1720581682939,0.41565179,3082.0,3081.1,2.4654]
[1720581683147,0.41565179,3082.0,3081.1,3.4374]
[1720581687819,0.972,3081.9,3081.1,2.4654]
[1720581688116,0.41565179,3082.0,3081.1,2.4654]
[1720581688656,0.2145233,3081.9,3081.1,2.4654]
[1720581689743,3.2145233,3081.9,3081.1,2.4654]
[1720581690049,2.3145,3081.8,3080.7,0.972]
[1720581690250,2.14490068,3081.7,3080.7,0.972]
[1720581690449,1.38718258,3081.7,3080.7,0.972]
[1720581691131,1.38718258,3081.7,3080.1,8.01527]
[1720581691132,0.972,3081.5,3080.2,2.3755]
[1720581691351,0.41565179,3081.4,3080.5,0.972]
[1720581691522,1.17349746,3081.4,3080.5,0.972]
[1720581692349,0.41565179,3081.4,3080.5,0.972]
[1720581692544,1.17347928,3081.4,3080.5,0.972]
[1720581692745,0.21454793,3081.3,3080.5,0.972]
[1720581693049,0.41565179,3081.4,3080.5,0.972]
[1720581693221,2.78266773,3081.6,3080.7,0.972]
[1720581695139,0.34016773,3081.6,3080.8,2.3223]
[1720581695550,0.7713845,3081.6,3080.8,2.3223]
[1720581696839,1.52907772,3081.6,3080.8,2.3223]
[1720581697167,0.7713845,3081.6,3080.8,2.3223]
[1720581697874,1.52918121,3081.6,3080.8,2.3223]
[1720581698081,1.72977761,3081.5,3080.8,2.3223]
[1720581698369,0.25011621,3081.4,3080.8,2.3223]
[1720581698685,2.3197,3081.3,3080.6,0.972]
[1720581700298,3.2917,3081.3,3080.4,0.972]
[1720581700442,0.972,3081.1,3080.2,6.3246]
[1720581700642,1.72989229,3081.1,3080.2,3.3246]
[1720581700953,1.40265739,3081.1,3080.2,3.3246]
[1720581701177,1.40265739,3081.1,3080.2,2.3526]
[1720581701509,0.7580208,3081.0,3080.2,2.3526]
[1720581702394,0.7580208,3081.0,3080.2,3.3246]
[1720581702592,0.7580208,3081.0,3080.2,3.65706]
[1720581702792,1.18867819,3081.1,3080.2,3.65706]
[1720581703506,3.0,3081.2,3080.4,0.972]
[1720581703809,6.3374,3081.5,3080.4,0.972]
[1720581704105,0.75782548,3081.4,3080.4,0.972]
[1720581704803,0.75784493,3081.4,3080.2,2.68506]
[1720581705009,5.3654,3081.5,3080.3,0.268506]
[1720581705310,0.7578387,3081.4,3080.3,0.268506]
[1720581705803,0.7578387,3081.4,3080.4,2.4189]
[1720581706205,0.7578387,3081.5,3080.4,2.4189]
[1720581707497,1.09800643,3081.6,3080.4,2.4189]
[1720581707701,1.09800643,3081.6,3080.5,2.40121353]
[1720581707901,0.34016773,3081.6,3080.7,2.4052]
[1720581713194,5.67816773,3081.6,3080.1,2.4011]
[1720581713396,4.32549905,3081.5,3080.2,0.54011]
[1720581713715,0.75768228,3081.4,3080.2,3.0]
[1720581713917,0.75768228,3081.4,3080.1,2.4011]
[1720581714417,0.56781677,3081.5,3080.1,2.4011]
[1720581714418,1.32549905,3081.5,3080.1,2.4011]
[1720581714719,0.4775409,3081.4,3080.2,0.24011]
[1720581714919,0.4775409,3081.4,3080.2,3.24011]
[1720581719217,1.23549106,3081.4,3080.2,3.24011]
[1720581720625,2.4158,3081.3,3080.2,0.24011]
[1720581720823,2.4158,3081.3,3080.1,2.4011]
[1720581720824,0.75795016,3081.2,3080.1,2.4011]
[1720581721026,3.0,3080.7,3079.7,2.321]
[1720581721250,2.4158,3080.6,3079.7,2.321]
[1720581722353,2.4158,3080.6,3079.7,5.321]
[1720581722548,2.3594,3080.9,3079.7,5.321]
[1720581722848,0.23594,3080.8,3079.7,6.6001]
[1720581723050,2.3594,3080.9,3079.7,6.6001]
[1720581723219,0.75809536,3080.8,3079.7,6.6001]
[1720581723420,2.3594,3080.9,3079.7,6.6001]
[1720581724138,0.75810311,3080.8,3079.7,6.6001]
[1720581724338,0.75810311,3080.8,3079.8,1.40701]
[1720581724526,2.3594,3080.9,3079.7,2.321]
[1720581724737,0.75817377,3080.8,3079.7,2.321]
[1720581725376,0.75820736,3080.8,3079.7,2.321]
[1720581727490,0.7582821,3080.8,3079.7,2.321]
[1720581727624,3.0,3080.6,3079.1,7.47]
[1720581727831,3.0,3080.6,3079.2,2.4841]
[1720581727832,6.0643821,3080.5,3079.2,2.4841]
[1720581728089,0.7582821,3080.4,3079.3,0.24841]
[1720581729191,0.7582821,3080.4,3079.3,0.31334998]
[1720581729510,3.0,3080.5,3079.4,2.2658]
[1720581729690,5.3761,3080.9,3079.4,2.2658]
[1720581729991,0.75822901,3080.8,3079.4,2.2658]
[1720581730200,0.6134329,3080.7,3079.5,0.22658]
[1720581730342,1.37166191,3080.7,3079.5,0.22658]
[1720581730699,3.0,3080.8,3079.6,2.2658]
[1720581730866,0.75818492,3080.7,3079.6,2.2658]
[1720581731064,3.75818492,3080.8,3079.6,2.2658]
[1720581731313,0.75818492,3080.7,3079.7,0.249238]
[1720581731650,0.75818492,3080.7,3079.6,2.2658]
[1720581734093,0.75815194,3080.7,3079.6,2.2658]
[1720581734594,2.3761,3080.9,3079.6,2.2658]
[1720581734802,0.75811951,3080.8,3079.6,2.2658]
[1720581735112,0.7552603,3080.8,3079.6,2.2658]
[1720581735400,0.7552603,3080.8,3079.7,0.22658]
[1720581736665,0.34024597,3080.7,3079.7,0.22658]
[1720581740100,1.09557705,3080.7,3079.6,2.2658]
[1720581740301,3.0,3080.6,3079.6,2.2658]
[1720581740624,2.443,3080.4,3079.6,2.2658]
[1720581740897,0.7555212,3080.3,3079.6,2.2658]
[1720581741095,0.31985212,3080.2,3079.6,2.2658]
[1720581742070,0.7555212,3080.3,3079.6,2.2658]
[1720581742257,3.0,3080.5,3079.6,2.2658]
[1720581742623,0.7554756,3080.4,3079.6,2.2658]
[1720581744118,0.75538514,3080.4,3079.6,2.2658]
[1720581744493,3.0,3080.5,3079.6,2.2658]
[1720581744691,1.35540538,3080.4,3079.6,2.2658]
[1720581745413,0.75553258,3080.3,3079.6,2.2658]
[1720581745711,1.35553258,3080.4,3079.6,2.2658]
[1720581747316,0.6,3080.4,3079.6,2.2658]
[1720581747511,0.36,3080.3,3079.6,2.2658]
[1720581750222,0.75525628,3080.4,3079.6,2.2658]
[1720581750427,3.0,3080.5,3079.6,2.2658]
[1720581751363,0.75518477,3080.4,3079.6,2.2658]
[1720581751885,3.0,3080.5,3079.6,2.2658]
[1720581752122,0.34026742,3080.3,3079.6,2.2658]
[1720581752699,1.31126742,3080.3,3079.6,2.2658]
[1720581754603,1.74239416,3080.3,3079.6,2.2658]
[1720581754814,0.75518091,3080.2,3079.6,2.2658]
[1720581756231,0.75503062,3080.2,3079.6,2.2658]
[1720581756990,3.75503062,3080.2,3079.6,2.2658]
[1720581757193,1.72603062,3080.1,3079.6,2.2658]
[1720581757408,0.971,3079.9,3079.6,2.2658]
[1720581757806,1.72600123,3079.9,3079.6,2.2658]
[1720581758006,0.971,3079.7,3079.1,2.2774]
[1720581758622,1.72600628,3079.9,3079.1,2.2774]
[1720581759222,0.971,3079.7,3079.1,2.2774]
[1720581760619,0.75500628,3079.8,3079.1,2.2774]
[1720581760925,0.75519436,3079.8,3079.1,2.2774]
[1720581761125,0.971,3079.9,3079.1,2.2774]
[1720581764321,1.72626963,3079.9,3079.1,2.2774]
[1720581764540,0.75526963,3079.8,3079.1,2.2774]
[1720581764745,1.44362696,3079.9,3079.1,2.2774]
[1720581764952,0.75525723,3079.8,3079.1,2.2774]
[1720581765244,1.44362696,3079.9,3079.1,2.2774]
[1720581765550,0.971,3079.7,3079.1,2.2774]
[1720581766331,1.19088877,3079.7,3079.1,2.2774]
[1720581766545,0.7552607,3079.6,3079.1,2.2774]
[1720581767554,0.971,3079.7,3079.1,2.2774]
[1720581769923,1.72639555,3079.7,3079.1,2.2774]
[1720581771244,0.75558735,3079.6,3079.1,2.2774]
[1720581771443,1.72658735,3079.7,3079.1,2.2774]
[1720581771923,2.28054071,3079.7,3079.1,2.2774]
[1720581772124,0.75558735,3079.6,3079.1,2.2774]
[1720581774661,0.75585446,3079.6,3079.1,2.2774]
[1720581775025,0.75584076,3079.6,3079.1,2.2774]
[1720581777971,0.75576288,3079.6,3079.1,2.2774]
[1720581779924,0.75576288,3079.7,3079.1,2.2774]
[1720581780205,0.971,3079.8,3079.1,2.50514]
[1720581780337,0.971,3079.8,3079.1,2.2774]
[1720581780338,1.72676288,3079.8,3079.1,2.2774]
[1720581780545,0.971,3079.6,3079.1,2.2774]
[1720581780778,0.971,3079.2,3078.5,7.47]
[1720581780986,0.971,3079.2,3078.6,2.3842]
[1720581781404,3.0,3079.2,3078.6,2.3842]
[1720581781583,0.971,3078.8,3077.9,7.47]
[1720581781891,3.75593168,3079.1,3077.9,7.47]
[1720581781892,0.971,3078.6,3077.9,7.47]
[1720581782060,0.971,3078.6,3077.5,0.971]
[1720581784160,0.75634828,3078.7,3077.5,0.971]
[1720581784161,0.971,3078.4,3077.5,0.971]
[1720581784696,0.971,3078.4,3077.6,2.3957]
[1720581784849,0.971,3078.4,3077.7,2.3957]
[1720581789092,0.971,3078.2,3077.7,2.3957]
[1720581794057,0.971,3078.4,3077.7,2.3957]
[1720581794509,0.37561358,3078.6,3077.7,3.3667]
[1720581794657,0.971,3078.6,3077.8,2.4079]
[1720581798808,3.0,3078.8,3077.8,2.4079]
[1720581799019,3.0,3079.1,3077.9,0.06497499]
[1720581799232,0.971,3078.9,3078.1,2.4461]
[1720581799370,0.971,3078.7,3078.1,2.4461]
[1720581800197,0.971,3078.9,3078.1,2.4461]
[1720581800383,0.971,3078.9,3078.1,2.69071]
[1720581800591,0.971,3078.9,3078.1,2.4461]
[1720581801126,0.971,3078.8,3078.1,2.4461]
[1720581802326,0.971,3078.8,3078.1,2.41118063]
[1720581803947,3.0,3079.6,3078.2,0.971]
[1720581804218,0.971,3079.3,3078.4,0.971]
[1720581804382,0.971,3079.5,3078.4,0.971]
[1720581804593,1.271,3079.5,3078.4,0.971]
[1720581805314,1.271,3079.5,3078.5,2.2834]
[1720581805911,4.271,3079.5,3078.5,2.2834]
[1720581806215,0.971,3079.3,3078.5,2.2834]
[1720581806730,1.271,3079.5,3078.7,2.2593]
[1720581806927,0.971,3079.6,3078.8,0.06495437]
[1720581807226,0.971,3079.6,3078.8,2.2593]
[1720581810327,0.971,3079.7,3078.8,2.2593]
[1720581810879,0.971,3079.7,3078.9,2.4561]
[1720581811191,3.0,3079.9,3079.3,2.4561]
[1720581811402,0.971,3080.2,3079.3,2.4561]
[1720581812702,0.971,3080.0,3079.3,2.4561]
[1720581812900,2.3806,3080.0,3079.3,2.4561]
[1720581813100,2.3806,3080.0,3079.0,2.4561]
[1720581813101,0.971,3079.6,3079.0,2.4561]
[1720581814191,3.0,3079.7,3079.0,2.4561]
[1720581814803,0.971,3079.8,3079.0,2.4561]
[1720581815287,0.420906,3079.7,3079.0,2.4561]
[1720581815488,0.971,3079.8,3079.0,2.4561]
[1720581816109,0.23806,3079.9,3079.2,2.2561]
[1720581816914,0.971,3080.2,3079.2,2.2561]
[1720581817326,1.31131902,3080.3,3079.4,2.2561]
[1720581817616,0.4311319,3080.2,3079.4,2.2561]
[1720581819225,3.0,3080.0,3079.4,2.2561]
[1720581819386,0.971,3079.9,3079.4,2.2561]
[1720581822597,0.4311319,3080.2,3079.4,2.2561]
[1720581822795,2.446,3080.8,3079.5,2.53564048]
[1720581822796,3.0,3080.8,3079.5,2.53564048]
[1720581823109,3.0,3080.8,3079.5,2.4707]
[1720581824244,3.0,3080.8,3079.6,2.53563781]
[1720581824394,0.33402663,3080.7,3079.6,2.53563781]
[1720581824831,0.34026634,3080.9,3079.6,2.53563781]
[1720581825132,0.34026634,3080.9,3079.7,0.06493142]
[1720581825337,0.66040324,3081.1,3079.7,2.45083142]
[1720581825644,0.66040033,3081.1,3079.7,2.3859]
[1720581825937,0.36604032,3081.0,3079.7,2.3859]
[1720581826443,3.46832332,3081.0,3079.7,2.3859]
[1720581826736,3.0,3080.9,3079.7,2.3859]
[1720581827713,0.36604032,3081.0,3079.7,2.3859]
[1720581827904,0.33660403,3080.9,3079.7,2.3859]
[1720581828416,0.33660403,3080.9,3079.8,0.06493258]
[1720581828604,0.33660403,3080.9,3079.9,2.2717]
[1720581833424,3.0,3080.7,3079.9,2.2717]
[1720581833629,0.3,3080.6,3079.9,2.2717]
[1720581834428,3.3,3080.6,3079.9,2.2717]
[1720581835321,0.34026187,3080.5,3079.9,2.2717]
[1720581846419,0.34026187,3080.5,3080.0,2.3634]
[1720581846624,0.34026187,3080.5,3080.2,2.3634]
[1720581847066,0.34026187,3080.5,3080.4,2.3634]
[1720581852868,3.0,3082.1,3080.4,2.3634]
[1720581853080,0.34012434,3080.9,3080.4,2.3634]
[1720581853239,0.34012434,3080.9,3080.2,3.06490814]
[1720581853240,7.46,3082.2,3080.5,4.80410883]
[1720581853574,0.3401251,3080.9,3080.7,2.4102]
[1720581853750,0.65988509,3082.0,3080.7,2.4102]
[1720581854149,0.34012113,3080.9,3080.7,2.4102]
[1720581854350,8.11988509,3082.2,3080.7,2.4102]
[1720581854565,0.34012107,3080.9,3080.7,2.4102]
[1720581854780,0.65988509,3082.0,3080.7,2.4102]
[1720581855081,0.34012101,3080.9,3080.7,2.4102]
[1720581855278,0.34012101,3080.9,3080.8,0.24102]
[1720581855775,0.34012101,3080.9,3080.8,2.66312]
[1720581855976,0.34012101,3080.9,3080.8,2.4870093]
[1720581856344,7.46,3082.2,3080.8,2.4870093]
[1720581856554,2.4757,3082.7,3081.1,2.4221]
[1720581856760,0.3400976,3081.5,3081.3,2.3245]
[1720581857067,8.11976265,3082.6,3081.3,2.38939977]
[1720581857255,0.34008944,3081.5,3081.3,2.38939977]
[1720581857454,8.6672614,3082.6,3081.3,2.3245]
[1720581857647,0.34007521,3081.9,3081.5,2.4377]
[1720581857976,0.6595732,3082.9,3081.5,2.4377]
[1720581858183,0.34006419,3081.9,3081.5,2.4377]
[1720581858541,9.9471,3083.0,3081.6,0.06489537]
[1720581858745,0.34006542,3081.9,3081.7,2.4377]
[1720581859051,3.0,3082.8,3081.7,2.4377]
[1720581859269,0.34007265,3081.9,3081.7,2.4377]
[1720581859594,3.0,3082.8,3081.7,2.4377]
[1720581859595,3.0,3082.7,3081.7,2.4377]
[1720581859766,0.34007463,3081.9,3081.7,2.4377]
[1720581859945,3.6,3082.7,3081.7,2.4377]
[1720581860386,0.3400706,3081.9,3081.7,2.4377]
[1720581860591,3.6,3082.7,3081.7,2.4377]
[1720581860745,0.78542827,3082.6,3081.7,2.4377]
[1720581865683,2.3378,3082.5,3081.7,2.4377]
[1720581865884,3.0,3082.4,3081.7,2.4377]
[1720581866324,3.0,3082.3,3081.7,2.4377]
[1720581866533,3.0,3082.3,3081.4,2.4913]
[1720581866758,0.6,3082.2,3081.4,2.4913]
[1720581871392,3.3400706,3082.6,3081.4,2.4913]
[1720581872036,0.3400706,3082.6,3081.4,2.4913]
[1720581875094,0.3400706,3082.6,3081.6,2.2775]
[1720581875626,0.3400706,3082.6,3081.2,2.2775]
[1720581875823,0.3400706,3082.6,3081.4,2.4505]
[1720581875992,0.3400706,3082.6,3081.6,2.4505]
[1720581876690,0.3400706,3082.6,3081.7,2.51539328]
[1720581876891,0.3400706,3082.6,3081.7,2.4505]
[1720581877204,0.97407766,3082.6,3081.7,2.4505]
[1720581880295,2.3636,3082.5,3081.7,2.4505]
[1720581880725,5.3636,3082.5,3081.7,2.4505]
[1720581881528,3.0,3082.5,3081.7,2.4505]
[1720581881696,3.97407766,3082.6,3081.7,2.4505]
[1720581882021,0.33376777,3082.5,3081.7,2.4505]
[1720581888652,0.3400706,3082.6,3081.7,2.4505]
[1720581889424,0.99965181,3082.6,3081.7,2.4505]
[1720581889951,0.3400706,3082.6,3081.7,2.4505]
[1720581890116,0.99967084,3082.6,3081.7,2.4505]
[1720581892945,2.3137,3082.5,3081.7,2.4505]
[1720581893109,0.99093732,3082.4,3081.7,2.4505]
[1720581893309,0.99104926,3082.4,3081.7,2.4505]
[1720581893814,0.99104999,3082.4,3081.7,2.4505]
[1720581894739,0.65971291,3082.5,3081.7,2.4505]
[1720581896807,0.65964824,3082.5,3081.7,2.4505]
[1720581898710,1.62864824,3082.5,3081.7,2.4505]
[1720581899255,0.65964824,3082.5,3081.7,2.4505]
[1720581900106,0.65966897,3082.5,3081.7,2.4505]
[1720581900310,0.39997396,3082.4,3081.7,2.4505]
[1720581900811,1.05963707,3082.4,3081.7,2.4505]
[1720581901148,0.99973371,3082.6,3081.7,2.4505]
[1720581902653,0.99973043,3082.6,3081.7,2.4505]
[1720581903147,0.99974282,3082.6,3081.7,2.4505]
[1720581904913,0.99974282,3082.6,3081.8,0.969]
[1720581905237,0.99974282,3082.6,3081.9,2.424]
[1720581905821,0.3400706,3082.6,3081.9,2.424]
[1720581912469,0.3400706,3082.6,3082.0,0.969]
[1720581912653,0.3400706,3082.6,3081.3,0.06488922]
[1720581912654,0.3400706,3082.6,3082.5,3.4467]
[1720581912975,0.3400706,3082.6,3082.5,3.79137]
[1720581915201,7.46,3084.4,3082.6,2.3603]
[1720581915346,0.33994852,3083.2,3082.7,2.42515876]
[1720581915556,1.22666463,3084.4,3082.9,2.3603]
[1720581915760,0.69359463,3084.4,3083.6,2.3603]
[1720581915976,3.0,3084.5,3083.6,2.3603]
[1720581916266,0.33992749,3084.3,3083.6,2.3603]
[1720581916472,0.33992749,3084.3,3083.7,0.969]
[1720581916703,0.33992749,3084.3,3083.6,2.3603]
[1720581919414,2.4751,3084.1,3083.1,2.2925]
[1720581919556,3.0,3083.8,3083.1,2.2925]
[1720581919761,0.69389237,3083.7,3082.2,2.2925]
[1720581919982,0.36938924,3083.6,3082.2,2.2925]
[1720581920394,1.06328161,3083.6,3082.2,2.2925]
[1720581921979,0.55,3083.5,3082.2,2.2925]
[1720581922704,1.24406993,3083.5,3082.2,2.2925]
[1720581922865,0.55,3083.5,3082.2,2.2925]
[1720581923207,0.39193892,3083.4,3082.2,2.2925]
[1720581923773,1.0859987,3083.4,3082.2,2.2925]
[1720581924165,0.55,3083.5,3082.2,2.2925]
[1720581924396,1.24403725,3083.5,3082.2,2.2925]
[1720581925889,0.69405695,3083.4,3082.2,2.2925]
[1720581926100,1.24405695,3083.5,3082.2,2.2925]
[1720581926310,0.4244057,3083.4,3082.2,2.2925]
[1720581926667,3.0,3083.3,3082.2,2.2925]
[1720581926897,3.69405695,3083.2,3082.2,2.2925]
[1720581927100,0.69405695,3083.1,3082.2,2.2925]
[1720581929188,0.69420886,3083.1,3082.2,2.2925]
[1720581929388,0.36942089,3083.0,3082.2,2.2925]
[1720581931594,0.70945734,3083.0,3081.6,2.3725]
[1720581931964,0.70945734,3083.0,3081.6,2.43738807]
[1720581932484,0.34003645,3083.0,3081.7,2.3725]
[1720581932708,0.34003645,3083.0,3081.9,2.3725]
[1720581933013,0.69402242,3083.6,3081.9,2.3725]
[1720581933171,0.9493186,3083.5,3082.0,0.54373821]
[1720581933583,0.9493186,3083.5,3082.0,3.54373821]
[1720581933783,0.9493186,3083.5,3082.0,3.0]
[1720581934081,0.9493186,3083.5,3081.9,2.3725]
[1720581934269,1.64334102,3083.5,3081.9,2.3725]
[1720581935672,5.06834102,3083.5,3081.9,2.3725]
[1720581935875,3.0,3083.3,3081.9,2.3725]
[1720581936076,4.24416242,3083.2,3081.9,2.3725]
[1720581936276,0.69416242,3083.1,3081.9,2.3725]
[1720581937720,2.2544,3083.0,3081.9,2.3725]
[1720581937870,0.69422271,3082.9,3081.9,2.3725]
[1720581938076,0.29486227,3082.8,3081.9,2.3725]
[1720581946940,3.29486227,3082.8,3081.9,2.3725]
[1720581947106,3.69425495,3082.7,3081.9,2.3725]
[1720581947453,0.69425495,3082.6,3081.9,2.3725]
[1720581948109,2.4205,3082.3,3081.5,2.3528]
[1720581948304,0.69425495,3082.2,3080.8,2.3528]
[1720581948552,0.3114755,3082.1,3080.9,0.98228]
[1720581948755,0.3114755,3082.1,3080.8,2.3528]
[1720581949750,0.3114755,3082.1,3081.0,2.4749]
[1720581949932,0.69461765,3082.2,3081.2,2.4749]
[1720581952457,2.4205,3082.3,3081.2,2.4749]
[1720581952752,0.6946454,3082.2,3081.2,2.4749]
[1720581952910,0.69463864,3082.2,3081.2,2.4749]
[1720581953112,0.61151386,3082.1,3081.2,2.4749]
[1720581953334,1.3061525,3082.1,3081.2,2.4749]
[1720581953845,0.69467832,3082.0,3081.2,2.4749]
[1720581954046,1.30619218,3082.1,3081.2,2.4749]
[1720581954238,0.43061922,3082.0,3081.2,2.4749]
[1720581958323,3.0,3082.2,3081.2,2.4749]
[1720581958533,5.4205,3082.3,3081.2,2.4749]
[1720581960016,3.0,3082.3,3081.2,2.4749]
[1720581962556,3.0,3082.3,3081.3,2.48910055]
[1720581962710,3.969,3082.3,3081.4,0.24891006]
[1720581962906,3.969,3082.3,3081.4,2.3629]
[1720581963357,0.969,3082.3,3081.4,2.3629]
[1720581963509,0.969,3082.5,3081.6,2.3629]
[1720581963825,0.969,3082.7,3081.8,2.481]
[1720581964149,0.969,3082.7,3081.6,0.33319]
[1720581964150,0.969,3082.9,3082.0,2.481]
[1720581964656,0.69416569,3083.1,3082.0,2.481]
[1720581965149,0.69418513,3083.1,3082.0,2.481]
[1720581965447,0.34004281,3083.0,3082.0,2.481]
[1720581966126,0.40342279,3082.9,3082.0,2.481]
[1720581969144,1.03424017,3083.0,3082.0,2.481]
[1720581971755,1.03420433,3083.0,3082.0,2.481]
[1720581972174,1.03420623,3083.0,3082.0,2.481]
[1720581972332,3.43730623,3083.0,3082.0,2.481]
[1720581972532,3.69416342,3082.9,3082.0,2.481]
[1720581972767,4.33789404,3082.8,3082.0,2.481]
[1720581972964,0.69416342,3082.7,3082.0,2.481]
[1720581974969,3.64373062,3082.8,3082.0,2.481]
[1720581975176,0.69439065,3082.7,3082.0,2.481]
[1720581975770,3.69439065,3082.7,3081.1,2.3473]
[1720581976093,3.0,3082.4,3081.3,2.3473]
[1720581976262,0.69439065,3082.3,3081.3,2.3473]
[1720581977689,3.69439065,3082.3,3081.3,2.3473]
[1720581977898,0.69439065,3082.2,3081.3,2.3473]
[1720581978084,0.36943907,3082.1,3081.3,2.3473]
[1720581979055,0.36943907,3082.1,3080.9,7.47]
[1720581979056,3.0,3081.8,3080.9,2.3473]
[1720581979505,3.0,3081.7,3080.9,2.3473]
[1720581979691,0.6,3081.6,3080.9,2.3473]
[1720581980687,0.34015331,3081.5,3080.9,2.3473]
[1720581990602,1.31015331,3081.5,3080.9,2.3473]
[1720581992137,0.34015331,3081.5,3080.9,3.3173]
[1720581992288,0.34015331,3081.5,3081.0,2.64533]
[1720581992691,0.34015331,3081.5,3081.1,0.97]
[1720581992936,0.34015331,3081.5,3081.2,2.3179]
[1720581995934,3.0,3082.6,3081.4,2.4756]
[1720581996231,0.33984099,3081.9,3081.4,2.4756]
[1720581996534,3.0,3082.6,3081.5,0.24756]
[1720581996742,0.3398417,3081.9,3081.5,0.24756]
[1720581996923,3.0,3082.6,3081.5,0.24756]
[1720581997232,0.33984167,3081.9,3081.4,2.4756]
[1720581997528,2.3078,3082.4,3080.7,2.4756]
[1720581997689,2.3078,3082.4,3080.8,1.29456]
[1720581997690,0.33983853,3081.9,3080.8,1.29456]
[1720581998036,3.0,3082.2,3080.8,3.0]
[1720581998237,0.33983566,3081.9,3080.8,3.0]
[1720581998444,0.33983566,3081.9,3080.7,2.4756]
[1720582002632,0.33983566,3081.9,3080.9,2.4144]
[1720582002800,0.33983566,3081.9,3081.0,0.24793061]
[1720582014530,0.33983566,3081.9,3081.1,0.97]
[1720582015655,2.77443566,3081.9,3081.1,0.97]
[1720582017324,0.33983566,3081.9,3081.4,2.2988]
[1720582017523,0.33983566,3081.9,3081.4,2.36369747]
[1720582017767,0.33983566,3081.9,3081.5,0.33336975]
[1720582018536,0.33983566,3081.9,3081.1,0.97]
[1720582019056,0.33983566,3081.9,3081.2,2.2658]
[1720582020339,0.33983566,3081.9,3081.1,0.97]
[1720582020659,2.4721,3081.8,3081.1,0.97]
[1720582020903,2.4721,3081.8,3081.1,1.29358]
[1720582023078,0.33983566,3081.9,3081.1,1.29358]
[1720582024072,0.33983566,3081.9,3081.1,0.32358]
[1720582024073,0.97,3081.8,3081.1,0.32358]
[1720582024366,2.2743,3081.7,3080.8,0.97]
[1720582024570,2.2743,3081.7,3080.9,0.33552]
[1720582025364,0.33983566,3081.9,3081.0,0.97]
[1720582025967,0.33983566,3081.9,3081.1,2.2791]
[1720582028670,0.33983566,3081.9,3081.1,2.34400302]
[1720582028825,0.33983566,3081.9,3081.2,0.3314003]
[1720582029427,0.33983566,3081.9,3081.3,0.0649019]
[1720582029841,0.33983566,3081.9,3081.2,1.3014003]
[1720582030571,0.33983566,3081.9,3081.2,0.3314003]
[1720582031438,0.33983566,3081.9,3081.2,1.3014003]
[1720582031638,0.33983566,3081.9,3081.3,0.36454021]
[1720582034785,0.33983566,3081.9,3081.4,2.2853]
[1720582035480,3.36187504,3082.9,3080.6,0.06489676]
[1720582035481,2.4972,3082.9,3081.8,2.2853]
[1720582035691,2.4972,3082.9,3081.9,1.29553]
[1720582035692,0.33982744,3082.4,3081.9,1.29553]
[1720582035853,0.33982744,3082.4,3081.9,1.36041243]
[1720582036053,2.4972,3082.9,3081.9,1.36041243]
[1720582036365,0.33981429,3082.6,3082.0,2.2853]
[1720582036878,0.33981429,3082.6,3082.1,0.97]
[1720582037982,0.33981429,3082.6,3082.0,2.2853]
[1720582038276,0.97,3082.4,3081.6,2.3635]
[1720582038479,0.33981429,3082.6,3081.6,2.3635]
[1720582038480,1.30981429,3082.6,3081.6,2.3635]
[1720582038677,1.74079572,3082.6,3081.6,2.72749878]
[1720582038979,1.74079572,3082.6,3081.7,0.97]
[1720582039195,0.73324888,3082.5,3081.7,0.97]
[1720582040365,0.73324888,3082.5,3081.8,2.3635]
[1720582040752,0.33981429,3082.6,3081.8,2.3635]